fUST/lending_fUST_20240702
["ID","MTS","AMOUNT","RATE_DAILY","PERIOD"]
[330901073,1719931841897,-825.77991301,0.00014995,2]
[330901167,1719931844443,-73.58008699,0.00014995,2]
[330901169,1719931844453,-184.70076656,0.00014995,2]
[330901172,1719931844466,-133.30923344,0.00014995,2]
[330901174,1719931844476,-500.0,0.00014995,2]
[330901176,1719931844485,-375.30133766,0.00014995,2]
[330901178,1719931844498,-124.69866234,0.00014995,2]
[330901180,1719931844508,-1401.3,0.00014995,2]
[330901182,1719931844517,-1560.68,0.00014995,2]
[330901184,1719931844527,-151.0,0.00014995,2]
[330901186,1719931844536,-634.44522984,0.00014995,2]
[330901188,1719931844547,-259.21477016,0.00014995,2]
[330901190,1719931844556,-353.75,0.00014995,2]
[330901192,1719931844565,-279.47,0.00014995,2]
[330901194,1719931844575,-832.71,0.00014995,2]
[330901196,1719931844584,-3808.77,0.00014995,2]
[330901199,1719931844593,-151.0,0.00014995,2]
[330901201,1719931844602,-207.97574345,0.00014995,2]
[330901203,1719931844611,-151.0,0.00014995,2]
[330901205,1719931844621,-151.0,0.00014995,2]
[330901207,1719931844630,-273.33931344,0.00014995,2]
[330901209,1719931844639,-500.0,0.00014995,2]
[330901211,1719931844648,-50.42020793,0.00014995,2]
[330901213,1719931844660,-107.12218107,0.00014995,2]
[330901215,1719931844669,-647.15,0.00014995,2]
[330901217,1719931844678,-500.0,0.00014996,2]
[330901219,1719931844687,-678.2,0.00014996,2]
[330901221,1719931844698,-500.0,0.00014996,2]
[330901223,1719931844707,-874.11,0.00014996,2]
[330901225,1719931844717,-206.2404328,0.00014996,2]
[330901227,1719931844726,-580.4,0.00014996,2]
[330901229,1719931844735,-715.98,0.00014996,2]
[330901231,1719931844747,-500.0,0.00014996,2]
[330901233,1719931844756,-500.0,0.00014996,2]
[330901235,1719931844766,-500.0,0.00014996,2]
[330901237,1719931844777,-500.0,0.00014996,2]
[330901239,1719931844786,-160.51,0.00014996,2]
[330901241,1719931844796,-1900.97224665,0.00014996,2]
[330901276,1719931845108,-424.91004738,0.00014996,2]
[330901470,1719931847232,-2048.32770597,0.00014996,2]
[330901473,1719931847243,-500.0,0.00014996,2]
[330901476,1719931847253,-500.0,0.00014996,2]
[330901479,1719931847264,-1106.57,0.00014996,2]
[330901482,1719931847276,-226.32,0.00014996,2]
[330901485,1719931847286,-63.16065338,0.00014996,2]
[330901488,1719931847298,-497.41228639,0.00014996,2]
[330901491,1719931847310,-3017.39999832,0.00014996,2]
[330901493,1719931847322,-2196.01706191,0.00014996,2]
[330901495,1719931847331,-204.29939095,0.00014996,2]
[330901498,1719931847344,-295.70060905,0.00014996,2]
[330901500,1719931847353,-500.0,0.00014996,2]
[330901515,1719931847489,-570.11,0.00014996,2]
[330901517,1719931847502,-500.0,0.00014996,2]
[330901519,1719931847512,-500.0,0.00014996,2]
[330901521,1719931847522,-618.44,0.00014996,2]
[330901523,1719931847531,-1259.12,0.00014996,2]
[330901525,1719931847541,-600.98,0.00014996,2]
[330901527,1719931847552,-703.78,0.00014996,2]
[330901529,1719931847561,-120.00299095,0.00014996,2]
[330901531,1719931847575,-379.99700905,0.00014996,2]
[330901533,1719931847584,-502.86679195,0.00014996,2]
[330901535,1719931847593,-500.0,0.00014996,2]
[330901537,1719931847602,-500.0,0.00014996,2]
[330901539,1719931847612,-500.0,0.00014996,2]
[330901541,1719931847621,-500.0,0.00014996,2]
[330901542,1719931847630,-500.0,0.00014996,2]
[330901544,1719931847641,-500.0,0.00014996,2]
[330901546,1719931847651,-500.0,0.00014996,2]
[330901548,1719931847660,-500.0,0.00014996,2]
[330901550,1719931847669,-218.57068759,0.00014996,2]
[330902047,1719931864392,11856.720118,0.00013997,2]
[330902049,1719931881135,1683.6663691,0.00013979,2]
[330902051,1719931934334,412.40789044,9.999e-05,2]
[330902053,1719931954791,5349.4179388,0.00013979,2]
[330902054,1719931955523,309.56353887,9.999e-05,2]
[330902058,1719931986932,282.99049332,9.999e-05,2]
[330902060,1719932000340,1433.52239716,0.0001212,2]
[330902061,1719932011638,6972.7816651,0.0001212,2]
[330902062,1719932015642,1876.24282826,0.0001212,2]
[330902063,1719932022282,246.0,0.00025,120]
[330902064,1719932037920,260.07315548,0.0001212,2]
[330902068,1719932056376,1914.55138167,0.0001212,2]
[330902070,1719932110025,499.9888163,0.00013914,2]
[330902071,1719932118362,595.86518887,0.0001,2]
[330902072,1719932127539,208.23002771,9.999e-05,2]
[330902075,1719932135038,24900.0,0.00013911,2]
[330902076,1719932146592,4423.11508975,9.999e-05,2]
[330902077,1719932147711,207.66347557,9.999e-05,2]
[330902080,1719932159842,412.40789044,9.999e-05,2]
[330902081,1719932162290,2099.6884772,0.0001212,2]
[330902082,1719932176837,661.48871602,0.0001212,2]
[330902083,1719932177452,3767.28917554,9.999e-05,2]
[330902084,1719932178808,7393.16959714,9.999e-05,2]
[330902085,1719932196355,412.40789044,0.0001212,2]
[330902086,1719932197153,1117.74863961,0.0001212,2]
[330902087,1719932197206,1050.87867196,9.999e-05,2]
[330902090,1719932217817,878.11857354,0.0001212,2]
[330902091,1719932224349,179.54081427,0.0001212,2]
[330902092,1719932224410,164.81209326,0.0001212,2]
[330902093,1719932227798,301.64861116,0.0001212,2]
[330902094,1719932228310,1433.79006949,0.0001212,2]
[330902095,1719932230426,402.64531294,0.0001212,2]
[330902096,1719932231176,155.19231493,9.999e-05,2]
[330902097,1719932231930,1218.76273557,0.0001212,2]
[330902098,1719932238357,1915.20590068,0.0001212,2]
[330902099,1719932238430,283.06585599,0.0001212,2]
[330902100,1719932238793,159.70589002,0.0001212,2]
[330902102,1719932239672,3109.2554268,0.00013934,2]
[330902103,1719932239851,155.24301377,0.0001212,2]
[330902104,1719932242606,1487.2316115,0.0001212,2]
[330902105,1719932243208,155.30892344,0.0001212,2]
[330902106,1719932245572,412.00504516,0.0001212,2]
[330902107,1719932247645,155.13744224,0.0001212,2]
[330902108,1719932249187,194.24380977,0.0001212,2]
[330902109,1719932251121,207.80177487,0.0001212,2]
[330902110,1719932251480,156.81249338,0.0001212,2]
[330902111,1719932303471,3000.0,0.00013835,2]
[330902113,1719932317214,154.85288975,9.999e-05,2]
[330902114,1719932331784,457.45943987,9.999e-05,2]
[330902115,1719932338122,154.96125969,0.0001,2]
[330902116,1719932384473,283.06585599,0.00012121,2]
[330902117,1719932387388,566.23632333,0.00012121,2]
[330902118,1719932388216,30446.0802823,0.00013815,2]
[330902119,1719932388511,933.59102466,9.999e-05,2]
[330902120,1719932417363,500.65033666,0.00012121,2]
[330902121,1719932424223,203.27462413,9.999e-05,2]
[330902122,1719932439755,597.70730701,0.0001212,2]
[330902123,1719932446869,412.30717912,9.999e-05,2]
[330902124,1719932448718,250.0,0.00013829,2]
[330902125,1719932450448,1010.132553,0.00013829,2]
[330902126,1719932478321,660.76793616,9.999e-05,2]
[330902137,1719932531797,155.24767274,0.0001212,2]
[330902139,1719932545081,208.37564863,0.0001212,2]
[330902140,1719932552648,283.06585599,0.0001212,2]
[330902141,1719932584836,155.06514646,0.0001212,2]
[330902142,1719932587193,200.8209043,0.0001212,2]
[330902143,1719932657535,933.86632555,9.999e-05,2]
[330902144,1719932660841,661.12832609,9.999e-05,2]
[330902145,1719932669696,771.6065735,0.00013826,2]
[330902146,1719932693871,412.40789044,9.999e-05,2]
[330902147,1719932695857,565.58110145,9.999e-05,2]
[330902148,1719932710772,225.55668028,0.00014,2]
[330902149,1719932731687,161.49054062,9.999e-05,2]
[330902150,1719932811258,60567.60907476,0.000241,59]
[330902151,1719932811496,259.73840289,0.0001212,2]
[330902152,1719932864759,24900.0,0.00013749,2]
[330902153,1719932883553,935.72281134,9.999e-05,2]
[330902154,1719932886201,3000.0,0.00013749,2]
[330902156,1719932910555,-164.23980904,0.00014418,2]
[330902157,1719932910585,-466.78689677,0.00014419,2]
[330902158,1719932910619,-631.02670581,0.00014419,2]
[330902159,1719932910705,-476.57603747,0.00014419,2]
[330902161,1719932935373,-665.79929479,0.00014419,2]
[330902162,1719932935430,-647.61319685,0.00014419,2]
[330902164,1719932951406,412.40789044,9.999e-05,2]
[330902166,1719932960405,-528.26124286,0.00014419,2]
[330902168,1719932960459,-692.06754463,0.00014419,2]
[330902169,1719932985453,-716.47412038,0.00014419,2]
[330902170,1719932985514,-716.47412038,0.00014419,2]
[330902171,1719933003896,412.40789044,0.0001212,2]
[330902172,1719933010604,-745.13308519,0.00014419,2]
[330902173,1719933010653,-439.27922028,0.00014419,2]
[330902192,1719933033212,-1681.40631922,0.00014419,2]
[330902194,1719933033224,-652.22951312,0.00014419,2]
[330902197,1719933033236,-162.96125744,0.00014419,2]
[330902199,1719933033245,-1169.78665637,0.00014519,2]
[330902201,1719933033256,-1138.93842172,0.00014697,2]
[330902203,1719933033265,-300.0,0.0001474,2]
[330902204,1719933033276,-300.0,0.0001474,2]
[330902205,1719933033285,-1110.76289574,0.00014741,2]
[330902206,1719933033297,-4177.1669452,0.00014741,2]
[330902207,1719933033306,-1138.93842171,0.00014746,2]
[330902208,1719933033316,-2124.49069545,0.00014794,2]
[330902209,1719933033326,-2042.61810027,0.00014794,2]
[330902210,1719933033335,-517.26405237,0.00014794,2]
[330902362,1719933041429,-915.99067246,0.00014794,2]
[330902364,1719933041439,-3295.01354469,0.00014794,2]
[330902366,1719933041448,-1914.02350809,0.00014794,2]
[330902368,1719933041457,-1138.93842171,0.00014795,2]
[330902370,1719933041467,-325.41834461,0.00014799,2]
[330902372,1719933041476,-566.70962398,0.00014843,2]
[330902377,1719933041516,-572.22879773,0.00014843,2]
[330902379,1719933041525,-224.32098813,0.00014892,2]
[330902382,1719933041538,-914.61743358,0.00014892,2]
[330902384,1719933041547,-668.67730428,0.00014897,2]
[330902386,1719933041556,-2000.0,0.00014897,2]
[330902388,1719933041568,-500.0,0.00014899,2]
[330902390,1719933041577,-1017.49,0.00014899,2]
[330902392,1719933041587,-711.40167395,0.00014899,2]
[330902393,1719933041598,-1966.11832605,0.00014899,2]
[330902394,1719933041608,-500.0,0.00014899,2]
[330902395,1719933041618,-18318.94,0.00014899,2]
[330902396,1719933041627,-500.0,0.00014899,2]
[330902397,1719933041637,-2013.07,0.00014899,2]
[330902398,1719933041647,-500.0,0.00014899,2]
[330902399,1719933041657,-3190.74,0.00014899,2]
[330902400,1719933041667,-500.0,0.00014899,2]
[330902401,1719933041677,-153.0,0.000149,2]
[330902402,1719933041687,-153.0,0.000149,2]
[330902403,1719933041697,-206.0554141,0.000149,2]
[330902404,1719933041707,-293.1949975,0.000149,2]
[330902405,1719933041717,-293.1949975,0.000149,2]
[330902406,1719933041727,-206.0554141,0.000149,2]
[330902407,1719933041737,-153.0,0.000149,2]
[330902408,1719933041750,-293.1949975,0.000149,2]
[330902409,1719933041760,-293.1949975,0.000149,2]
[330902410,1719933041771,-153.0,0.000149,2]
[330902411,1719933041780,-293.1949975,0.000149,2]
[330902413,1719933041790,-206.0554141,0.000149,2]
[330902415,1719933041799,-294.9138163,0.000149,2]
[330902417,1719933041809,-293.1949975,0.000149,2]
[330902419,1719933041819,-153.0,0.000149,2]
[330902421,1719933041829,-153.0,0.000149,2]
[330902423,1719933041839,-411.6752959,0.000149,2]
[330902425,1719933041848,-293.1949975,0.000149,2]
[330902427,1719933041859,-153.0,0.000149,2]
[330902429,1719933041869,-293.1949975,0.000149,2]
[330902431,1719933041879,-153.0,0.000149,2]
[330902433,1719933041889,-206.0554141,0.000149,2]
[330902435,1719933041898,-293.1949975,0.000149,2]
[330902437,1719933041911,-153.0,0.000149,2]
[330902439,1719933041922,-206.0554141,0.000149,2]
[330902441,1719933041931,-293.1949975,0.000149,2]
[330902443,1719933041940,-293.1949975,0.000149,2]
[330902445,1719933041949,-206.0554141,0.000149,2]
[330902447,1719933041959,-153.0,0.000149,2]
[330902449,1719933041968,-293.1949975,0.000149,2]
[330902451,1719933041977,-153.0,0.000149,2]
[330902453,1719933041986,-293.1949975,0.000149,2]
[330902455,1719933041998,-153.0,0.000149,2]
[330902457,1719933042008,-293.1949975,0.000149,2]
[330902459,1719933042018,-206.0554141,0.000149,2]
[330902461,1719933042027,-293.1949975,0.000149,2]
[330902463,1719933042036,-293.1949975,0.000149,2]
[330902465,1719933042046,-206.0554141,0.000149,2]
[330902467,1719933042055,-293.1949975,0.000149,2]
[330902469,1719933042064,-293.1949975,0.000149,2]
[330902471,1719933042074,-153.0,0.000149,2]
[330902473,1719933042083,-153.0,0.000149,2]
[330902475,1719933042092,-293.1949975,0.000149,2]
[330902477,1719933042102,-584.4346909,0.000149,2]
[330902479,1719933042111,-293.1949975,0.000149,2]
[330902481,1719933042120,-293.1949975,0.000149,2]
[330902483,1719933042130,-293.1949975,0.000149,2]
[330902485,1719933042139,-293.1949975,0.000149,2]
[330902487,1719933042148,-88888.0,0.00014968,2]
[330902489,1719933042158,-500.0,0.0001499,2]
[330902491,1719933042167,-632.99,0.0001499,2]
[330902493,1719933042177,-4769.8,0.0001499,2]
[330902495,1719933042187,-7819.45897768,0.00014991,2]
[330902497,1719933042196,-500.0,0.00014991,2]
[330902499,1719933042205,-500.0,0.00014991,2]
[330902501,1719933042214,-500.0,0.00014991,2]
[330902503,1719933042224,-500.0,0.00014991,2]
[330902505,1719933042233,-500.0,0.00014991,2]
[330902507,1719933042243,-767.16,0.00014991,2]
[330902508,1719933042253,-500.0,0.00014991,2]
[330902511,1719933042263,-500.0,0.00014991,2]
[330902513,1719933042273,-837.68,0.00014991,2]
[330902515,1719933042282,-500.0,0.00014991,2]
[330902516,1719933042291,-500.0,0.00014991,2]
[330902518,1719933042301,-500.0,0.00014991,2]
[330902520,1719933042310,-506.19947445,0.00014991,2]
[330902522,1719933042320,-502.47280235,0.00014991,2]
[330902524,1719933042329,-500.0,0.00014991,2]
[330902526,1719933042339,-505.58815916,0.00014991,2]
[330902528,1719933042348,-503.60518429,0.00014991,2]
[330902530,1719933042358,-500.0,0.00014991,2]
[330902532,1719933042368,-691.31,0.00014991,2]
[330902534,1719933042378,-503.05307365,0.00014991,2]
[330902536,1719933042387,-849.56,0.00014991,2]
[330902538,1719933042397,-500.0,0.00014991,2]
[330902540,1719933042405,-500.0,0.00014991,2]
[330902542,1719933042415,-500.0,0.00014991,2]
[330902544,1719933042426,-500.0,0.00014991,2]
[330902546,1719933042436,-500.0,0.00014991,2]
[330902548,1719933042445,-594.27,0.00014991,2]
[330902550,1719933042454,-503.33884486,0.00014991,2]
[330902552,1719933042464,-500.0,0.00014991,2]
[330902554,1719933042473,-314.16453893,0.00014991,2]
[330902556,1719933042483,-500.0,0.00014991,2]
[330902558,1719933042500,-548.5553125,0.00014991,2]
[330902560,1719933042509,-500.0,0.00014991,2]
[330902562,1719933042519,-500.0,0.00014991,2]
[330902564,1719933042528,-500.0,0.00014991,2]
[330902566,1719933042538,-500.0,0.00014991,2]
[330902568,1719933042547,-503.1415974,0.00014991,2]
[330902570,1719933042556,-500.0,0.00014991,2]
[330902572,1719933042565,-500.0,0.00014991,2]
[330902574,1719933042576,-500.0,0.00014991,2]
[330902576,1719933042586,-500.0,0.00014991,2]
[330902578,1719933042595,-500.0,0.00014991,2]
[330902580,1719933042604,-500.0,0.00014991,2]
[330902582,1719933042613,-151.0,0.00014991,2]
[330902584,1719933042622,-500.0,0.00014991,2]
[330902586,1719933042632,-500.0,0.00014991,2]
[330902588,1719933042641,-546.35,0.00014991,2]
[330902590,1719933042650,-500.0,0.00014991,2]
[330902592,1719933042659,-698.824436,0.00014991,2]
[330902594,1719933042668,-698.824436,0.00014991,2]
[330902596,1719933042677,-1000.42,0.00014991,2]
[330902598,1719933042687,-164.09,0.00014991,2]
[330902600,1719933042696,-674.46,0.00014991,2]
[330902602,1719933042706,-500.0,0.00014991,2]
[330902605,1719933042716,-153.244472,0.00014991,2]
[330902608,1719933042725,-601.96,0.00014991,2]
[330902611,1719933042735,-151.0,0.00014991,2]
[330902614,1719933042747,-256.886584,0.00014991,2]
[330902618,1719933042756,-1573.71,0.00014991,2]
[330902621,1719933042766,-500.0,0.00014991,2]
[330902624,1719933042775,-1840.13,0.00014991,2]
[330902628,1719933042785,-500.0,0.00014991,2]
[330902631,1719933042794,-500.0,0.00014991,2]
[330902635,1719933042803,-500.0,0.00014991,2]
[330902639,1719933042812,-1033.1,0.00014991,2]
[330902643,1719933042822,-500.0,0.00014991,2]
[330902647,1719933042831,-500.0,0.00014991,2]
[330902651,1719933042840,-160.06,0.00014991,2]
[330902655,1719933042849,-500.0,0.00014991,2]
[330902658,1719933042858,-500.0,0.00014991,2]
[330902662,1719933042868,-931.76,0.00014991,2]
[330902666,1719933042877,-4092.89,0.00014991,2]
[330902669,1719933042886,-1206.66,0.00014991,2]
[330902672,1719933042895,-504.15986181,0.00014991,2]
[330902675,1719933042905,-257.60394639,0.00014991,2]
[330902678,1719933042915,-500.0,0.00014991,2]
[330902680,1719933042925,-500.0,0.00014991,2]
[330902682,1719933042934,-500.0,0.00014991,2]
[330902685,1719933042943,-500.0,0.00014991,2]
[330902688,1719933042952,-500.0,0.00014991,2]
[330902691,1719933042962,-3229.73,0.00014991,2]
[330902694,1719933042971,-3229.73,0.00014991,2]
[330902696,1719933042981,-501.4635218,0.00014991,2]
[330902699,1719933042991,-500.0,0.00014991,2]
[330902702,1719933043002,-500.0,0.00014991,2]
[330902705,1719933043011,-500.0,0.00014991,2]
[330902708,1719933043020,-604.95,0.00014991,2]
[330902711,1719933043029,-500.0,0.00014991,2]
[330902714,1719933043038,-695.86,0.00014991,2]
[330902717,1719933043047,-500.0,0.00014992,2]
[330902720,1719933043056,-500.0,0.00014992,2]
[330902723,1719933043066,-500.0,0.00014992,2]
[330902726,1719933043075,-500.0,0.00014992,2]
[330902729,1719933043085,-500.0,0.00014992,2]
[330902731,1719933043095,-500.0,0.00014992,2]
[330902734,1719933043105,-715.43,0.00014992,2]
[330902737,1719933043115,-501.66,0.00014992,2]
[330902740,1719933043124,-500.0,0.00014992,2]
[330902743,1719933043133,-500.0,0.00014992,2]
[330902746,1719933043142,-500.0,0.00014992,2]
[330902749,1719933043151,-500.0,0.00014992,2]
[330902752,1719933043160,-645.92,0.00014992,2]
[330902755,1719933043169,-563.56,0.00014992,2]
[330902758,1719933043178,-500.0,0.00014992,2]
[330902760,1719933043187,-500.0,0.00014992,2]
[330902763,1719933043196,-500.0,0.00014992,2]
[330902766,1719933043205,-500.0,0.00014992,2]
[330902769,1719933043215,-500.0,0.00014992,2]
[330902772,1719933043224,-500.0,0.00014992,2]
[330902775,1719933043234,-500.0,0.00014992,2]
[330902778,1719933043243,-500.0,0.00014992,2]
[330902781,1719933043254,-500.0,0.00014992,2]
[330902784,1719933043264,-500.0,0.00014992,2]
[330902787,1719933043273,-504.62120849,0.00014992,2]
[330902790,1719933043283,-502.30610212,0.00014992,2]
[330902791,1719933043292,-500.0,0.00014992,2]
[330902793,1719933043302,-500.0,0.00014992,2]
[330902795,1719933043311,-500.0,0.00014992,2]
[330902797,1719933043321,-504.30400808,0.00014992,2]
[330902799,1719933043330,-500.0,0.00014992,2]
[330902800,1719933043340,-500.0,0.00014992,2]
[330902803,1719933043349,-600.36,0.00014992,2]
[330902806,1719933043358,-500.0,0.00014992,2]
[330902809,1719933043367,-525.07,0.00014992,2]
[330902812,1719933043376,-151.0,0.00014992,2]
[330902815,1719933043386,-151.0,0.00014992,2]
[330902818,1719933043396,-238.256848,0.00014992,2]
[330902821,1719933043405,-162.71167838,0.00014992,2]
[330902824,1719933043414,-1216.78,0.00014992,2]
[330902827,1719933043423,-6043.64,0.00014992,2]
[330902830,1719933043433,-698.824436,0.00014992,2]
[330902833,1719933043442,-698.824436,0.00014992,2]
[330902836,1719933043452,-500.0,0.00014992,2]
[330902839,1719933043461,-698.824436,0.00014992,2]
[330902842,1719933043470,-698.824436,0.00014992,2]
[330902845,1719933043479,-698.824436,0.00014992,2]
[330902848,1719933043491,-698.824436,0.00014992,2]
[330902851,1719933043504,-698.824436,0.00014992,2]
[330902853,1719933043512,-698.824436,0.00014992,2]
[330902856,1719933043522,-698.824436,0.00014992,2]
[330902860,1719933043532,-698.824436,0.00014992,2]
[330902862,1719933043542,-500.0,0.00014992,2]
[330902865,1719933043551,-500.0,0.00014992,2]
[330902868,1719933043560,-500.0,0.00014992,2]
[330902870,1719933043570,-500.0,0.00014992,2]
[330902874,1719933043581,-500.0,0.00014992,2]
[330902876,1719933043591,-500.0,0.00014992,2]
[330902879,1719933043601,-500.0,0.00014992,2]
[330902906,1719933043610,-5007.68,0.00014992,2]
[330902911,1719933043743,-500.0,0.00014992,2]
[330902914,1719933043756,-500.0,0.00014992,2]
[330902917,1719933043765,-500.0,0.00014992,2]
[330902920,1719933043774,-3229.73,0.00014992,2]
[330902923,1719933043788,-502.17630105,0.00014992,2]
[330902926,1719933043797,-1009.09,0.00014992,2]
[330902929,1719933043807,-500.0,0.00014992,2]
[330902931,1719933043816,-500.0,0.00014992,2]
[330902934,1719933043825,-500.0,0.00014992,2]
[330902937,1719933043835,-1000.0,0.00014993,2]
[330902940,1719933043844,-1000.0,0.00014993,2]
[330902943,1719933043854,-1000.0,0.00014993,2]
[330902946,1719933043863,-264.3561021,0.00014993,2]
[330902970,1719933043982,-735.6438979,0.00014993,2]
[330902972,1719933043992,-1000.0,0.00014993,2]
[330902975,1719933044006,-1000.0,0.00014993,2]
[330902978,1719933044015,-1000.0,0.00014993,2]
[330902981,1719933044023,-1000.0,0.00014993,2]
[330902984,1719933044032,-1000.0,0.00014993,2]
[330902986,1719933044042,-1000.0,0.00014993,2]
[330902989,1719933044051,-1000.0,0.00014993,2]
[330902992,1719933044062,-1000.0,0.00014993,2]
[330902995,1719933044072,-1000.0,0.00014993,2]
[330902999,1719933044081,-1000.0,0.00014993,2]
[330903001,1719933044091,-1000.0,0.00014993,2]
[330903004,1719933044100,-1000.0,0.00014993,2]
[330903007,1719933044110,-1000.0,0.00014993,2]
[330903010,1719933044119,-1000.0,0.00014993,2]
[330903013,1719933044128,-1000.0,0.00014993,2]
[330903015,1719933044137,-1000.0,0.00014993,2]
[330903016,1719933044146,-1000.0,0.00014993,2]
[330903017,1719933044155,-500.0,0.00014993,2]
[330903018,1719933044164,-1000.0,0.00014993,2]
[330903019,1719933044174,-1000.0,0.00014993,2]
[330903020,1719933044183,-1000.0,0.00014993,2]
[330903021,1719933044192,-1000.0,0.00014993,2]
[330903022,1719933044201,-1000.0,0.00014993,2]
[330903023,1719933044210,-1000.0,0.00014993,2]
[330903024,1719933044220,-1000.0,0.00014993,2]
[330903026,1719933044229,-1000.0,0.00014993,2]
[330903028,1719933044238,-1000.0,0.00014993,2]
[330903030,1719933044247,-1000.0,0.00014993,2]
[330903032,1719933044256,-1000.0,0.00014993,2]
[330903034,1719933044265,-1000.0,0.00014993,2]
[330903036,1719933044274,-1000.0,0.00014993,2]
[330903038,1719933044284,-1125.0,0.00014993,2]
[330903040,1719933044293,-550.54,0.00014993,2]
[330903042,1719933044302,-500.0,0.00014993,2]
[330903044,1719933044311,-698.824436,0.00014993,2]
[330903046,1719933044321,-698.824436,0.00014993,2]
[330903048,1719933044330,-698.824436,0.00014993,2]
[330903050,1719933044340,-698.824436,0.00014993,2]
[330903052,1719933044349,-698.824436,0.00014993,2]
[330903054,1719933044358,-698.824436,0.00014993,2]
[330903056,1719933044367,-698.824436,0.00014993,2]
[330903058,1719933044377,-698.82443,0.00014993,2]
[330903060,1719933044386,-500.0,0.00014993,2]
[330903062,1719933044395,-500.0,0.00014993,2]
[330903064,1719933044406,-700.35,0.00014993,2]
[330903066,1719933044415,-500.0,0.00014993,2]
[330903068,1719933044425,-500.0,0.00014993,2]
[330903070,1719933044435,-151.0,0.00014994,2]
[330903072,1719933044443,-151.0,0.00014994,2]
[330903074,1719933044452,-500.0,0.00014994,2]
[330903076,1719933044462,-796.82,0.00014994,2]
[330903078,1719933044472,-500.0,0.00014994,2]
[330903079,1719933044481,-500.0,0.00014994,2]
[330903081,1719933044498,-500.0,0.00014994,2]
[330903083,1719933044508,-500.0,0.00014994,2]
[330903085,1719933044517,-500.0,0.00014994,2]
[330903087,1719933044527,-500.0,0.00014994,2]
[330903089,1719933044538,-500.71205253,0.00014994,2]
[330903091,1719933044547,-561.25,0.00014994,2]
[330903093,1719933044556,-500.0,0.00014994,2]
[330903095,1719933044567,-500.0,0.00014994,2]
[330903097,1719933044577,-664.1,0.00014994,2]
[330903099,1719933044586,-500.0,0.00014994,2]
[330903101,1719933044595,-500.0,0.00014994,2]
[330903103,1719933044605,-500.0,0.00014994,2]
[330903105,1719933044615,-500.0,0.00014994,2]
[330903106,1719933044624,-693.22,0.00014994,2]
[330903107,1719933044633,-509.28705841,0.00014994,2]
[330903108,1719933044643,-500.0,0.00014994,2]
[330903109,1719933044652,-1578.82,0.00014994,2]
[330903110,1719933044662,-500.0,0.00014994,2]
[330903111,1719933044672,-500.0,0.00014994,2]
[330903112,1719933044682,-500.0,0.00014994,2]
[330903113,1719933044692,-500.0,0.00014994,2]
[330903114,1719933044701,-500.0,0.00014994,2]
[330903115,1719933044711,-500.0,0.00014994,2]
[330903116,1719933044721,-3229.73,0.00014994,2]
[330903117,1719933044731,-3427.90687032,0.00014995,2]
[330903118,1719933044743,-16947.75554689,0.00014995,2]
[330903119,1719933044755,-500.0,0.00014995,2]
[330903120,1719933044765,-500.0,0.00014995,2]
[330903121,1719933044775,-500.0,0.00014995,2]
[330903123,1719933044784,-500.0,0.00014995,2]
[330903125,1719933044794,-649.15,0.00014995,2]
[330903127,1719933044803,-500.0,0.00014995,2]
[330903129,1719933044813,-158.17942166,0.00014995,2]
[330903169,1719933045195,-293.1949975,0.000149,2]